{"text_format":"3","workbook":"xlsx","n_sheets":4,"sheets":["Začetek","Proračun za poroko","Oblačila-slavje-glasba-slike","Okrasje-cvetje-darila-potovanje"],"not_rendered":{"charts":1,"defined_names":22},"read":"whole","date_system":"1900"}

{"sheet":"Začetek","index":0,"n_rows":7,"n_cols":2,"rows_kept":7}
[null,"O TEJ PREDLOGI"]
[null,"To predlogo uporabite za spremljanje stroškov poroke."]
[null,"Vnesite predvideni in dejanski stroške za različne kategorije na ločene delovne liste."]
[null,"Povzetek proračuna za poroko in grafikon sta samodejno posodobljena namesto vas."]
[null,"Opomba: "]
[null,"Dodatna navodila so na voljo v stolpcu A na vsakem delovnem listu. To besedilo je bilo skrito namenoma. Če želite besedilo premakniti, izberite stolpec A, nato izberite še IZBRIŠI. Če želite besedilo razkriti, izberite stolpec A, nato zamenjajte barvo pisave."]
[null,"Za več informacij o tabelah v tabeli pritisnite tipko SHIFT in nato tipko F10 ter izberite možnost TABELA in nato še NADOMESTNO BESEDILO."]

{"sheet":"Proračun za poroko","index":1,"n_rows":19,"n_cols":6,"rows_kept":19,"merged":[[2,2,4,5],[18,2,42,5]]}
["Na tem delovnem listu ustvarite proračun za poroko. Vnesite podrobnosti v tabele na delovnih listih »Oblačila, slavje, glasba,slike, fotografiranje« in »Okrasje, cvetje, darila, potovanje«, da posodobite povzetek in grafikon na trenutnem delovnem listu. Uporabna navodila za uporabo tega delovnega lista najdete v celicah v tem stolpcu. Oznaka za datum poroke je v celici C1.",null,"Datum poroke:"]
["Datum poroke vnesite v celico C2. Preostalo število dni je samodejno izračunano v celici E2.",null,{"$f":"TODAY()+365","v":"2019-12-05"},"Preostalo število dni:",{"$f":"C2-TODAY()","v":365}]
["Naslov tega delovnega lista je v celici C3. Naslednje navodilo je v celici A6.",null,"Povzetek proračuna za poroko"]
[]
[]
["Tabela s povzetk proračuna, ki se začne v celici C6, je samodejno posodobljena. Naslednje navodilo je v celici A19.",null,"KATEGORIJA","PREDVIDENI","DEJANSKI","PREKORAČENO/NEDOSEŽENO"]
[null,null,"Oblačila",{"$f":"Oblačila_skupno_ocenjeno","v":{"v":9490,"d":"9,490.00"}},{"$f":"Oblačila_skupno_dejansko","v":{"v":9770,"d":"9,770.00"}},{"$f":"PovzetekProračuna[[#This Row],[PREDVIDENI]]-PovzetekProračuna[[#This Row],[DEJANSKI]]","v":{"v":-280,"d":"-280.00"}}]
[null,null,"Poročno slavje",{"$f":"Poročno_slavje_skupno_ocenjeno","v":{"v":1050,"d":"1,050.00"}},{"$f":"Poročno_slavje_skupno_dejansko","v":{"v":928,"d":"928.00"}},{"$f":"PovzetekProračuna[[#This Row],[PREDVIDENI]]-PovzetekProračuna[[#This Row],[DEJANSKI]]","v":{"v":122,"d":"122.00"}}]
[null,null,"Glasba",{"$f":"Glasba_zabava_ocenjeno","v":{"v":600,"d":"600.00"}},{"$f":"Glasba_zabava_skupno_dejansko","v":{"v":400,"d":"400.00"}},{"$f":"PovzetekProračuna[[#This Row],[PREDVIDENI]]-PovzetekProračuna[[#This Row],[DEJANSKI]]","v":{"v":200,"d":"200.00"}}]
[null,null,"Tiskano gradivo",{"$f":"Tiskano_gradivo_skupno_ocenjeno","v":{"v":935,"d":"935.00"}},{"$f":"Tiskano_gradivo_skupno_dejansko","v":{"v":870,"d":"870.00"}},{"$f":"PovzetekProračuna[[#This Row],[PREDVIDENI]]-PovzetekProračuna[[#This Row],[DEJANSKI]]","v":{"v":65,"d":"65.00"}}]
[null,null,"Fotografiranje",{"$f":"Fotografije_skupno_ocenjeno","v":{"v":1625,"d":"1,625.00"}},{"$f":"Fotografije_skupno_dejansko","v":{"v":1575,"d":"1,575.00"}},{"$f":"PovzetekProračuna[[#This Row],[PREDVIDENI]]-PovzetekProračuna[[#This Row],[DEJANSKI]]","v":{"v":50,"d":"50.00"}}]
[null,null,"Dekoracija",{"$f":"Dekoracija_skupno_ocenjeno","v":{"v":700,"d":"700.00"}},{"$f":"Dekoracija_skupno_dejansko","v":{"v":720,"d":"720.00"}},{"$f":"PovzetekProračuna[[#This Row],[PREDVIDENI]]-PovzetekProračuna[[#This Row],[DEJANSKI]]","v":{"v":-20,"d":"-20.00"}}]
[null,null,"Cvetje",{"$f":"Cvetje_skupno_ocenjeno","v":{"v":900,"d":"900.00"}},{"$f":"Cvetje_skupno_dejansko","v":{"v":850,"d":"850.00"}},{"$f":"PovzetekProračuna[[#This Row],[PREDVIDENI]]-PovzetekProračuna[[#This Row],[DEJANSKI]]","v":{"v":50,"d":"50.00"}}]
[null,null,"Darila",{"$f":"Darila_skupno_ocenjeno","v":{"v":1345,"d":"1,345.00"}},{"$f":"Darila_skupno_dejansko","v":{"v":1075,"d":"1,075.00"}},{"$f":"PovzetekProračuna[[#This Row],[PREDVIDENI]]-PovzetekProračuna[[#This Row],[DEJANSKI]]","v":{"v":270,"d":"270.00"}}]
[null,null,"Potovanje",{"$f":"Potovanje_prevoz_skupno_ocenjeno","v":{"v":100,"d":"100.00"}},{"$f":"Potovanje_prevoz_skupno_dejansko","v":{"v":165,"d":"165.00"}},{"$f":"PovzetekProračuna[[#This Row],[PREDVIDENI]]-PovzetekProračuna[[#This Row],[DEJANSKI]]","v":{"v":-65,"d":"-65.00"}}]
[null,null,"Drugo",{"$f":"Drugi_stroški_skupno_ocenjeno","v":{"v":885,"d":"885.00"}},{"$f":"Drugi_stroški_skupno_dejansko","v":{"v":1021,"d":"1,021.00"}},{"$f":"PovzetekProračuna[[#This Row],[PREDVIDENI]]-PovzetekProračuna[[#This Row],[DEJANSKI]]","v":{"v":-136,"d":"-136.00"}}]
[null,null,"Skupni stroški",{"$f":"SUBTOTAL(109,PovzetekProračuna[PREDVIDENI])","v":{"v":17630,"d":"17,630.00"}},{"$f":"SUBTOTAL(109,PovzetekProračuna[DEJANSKI])","v":{"v":17374,"d":"17,374.00"}},{"$f":"SUBTOTAL(109,PovzetekProračuna[PREKORAČENO/NEDOSEŽENO])","v":{"v":256,"d":"256.00"}}]
[]
["Tortni grafikon v celici C19 je samodejno posodobljen.",null,"V tej celici je tortni grafikon, ki prikazuje odstotek stroškov vsake kategorije."]

{"sheet":"Oblačila-slavje-glasba-slike","index":2,"n_rows":56,"n_cols":6,"rows_kept":56,"merged":[[16,1,16,4],[28,1,28,4],[29,1,29,4],[35,1,35,4],[48,1,48,4]]}
["Vnesite predvideni in dejanski stroške za vsako kategorija v ustrezne tabele na tem delovnem listu. Prekoračeno ali nedoseženo znesek je izračunan samodejno. Oznaka za oblačila je v celici na desni. Uporabna navodila za uporabo tega delovnega lista najdete v celicah v tem stolpcu. Puščica dol za začetek dela.","Oblačila",{"$nulls":3}," "]
[" Podrobnosti vnesite v tabelo »Oblačila«, ki se začne v celici na desni. Naslednje navodilo je v celici A18.","KATEGORIJA","PREDVIDENI","DEJANSKI","PREKORAČENO/NEDOSEŽENO"," "]
[null,"Zaročna prstana",{"v":1500,"d":"1,500.00"},{"v":1500,"d":"1,500.00"},{"$f":"'Oblačila-slavje-glasba-slike'!$C3-'Oblačila-slavje-glasba-slike'!$D3","v":{"v":0,"d":"0.00"}}]
[null,"Prstan za bodočega zakonskega partnerja 1",{"v":2000,"d":"2,000.00"},{"v":2300,"d":"2,300.00"},{"$f":"'Oblačila-slavje-glasba-slike'!$C4-'Oblačila-slavje-glasba-slike'!$D4","v":{"v":-300,"d":"-300.00 "}}]
[null,"Obleka bodočega zakonskega partnerja 1",{"v":3000,"d":"3,000.00"},{"v":2750,"d":"2,750.00"},{"$f":"'Oblačila-slavje-glasba-slike'!$C5-'Oblačila-slavje-glasba-slike'!$D5","v":{"v":250,"d":"250.00"}}]
[null,"Tančica/pokrivalo bodočega zakonskega partnerja 1",{"v":500,"d":"500.00"},{"v":500,"d":"500.00"},{"$f":"'Oblačila-slavje-glasba-slike'!$C6-'Oblačila-slavje-glasba-slike'!$D6","v":{"v":0,"d":"0.00"}}]
[null,"Čevlji bodočega zakonskega partnerja 1",{"v":350,"d":"350.00"},{"v":300,"d":"300.00"},{"$f":"'Oblačila-slavje-glasba-slike'!$C7-'Oblačila-slavje-glasba-slike'!$D7","v":{"v":50,"d":"50.00"}}]
[null,"Nakit bodočega zakonskega partnerja 1",{"v":400,"d":"400.00"},{"v":550,"d":"550.00"},{"$f":"'Oblačila-slavje-glasba-slike'!$C8-'Oblačila-slavje-glasba-slike'!$D8","v":{"v":-150,"d":"-150.00 "}}]
[null,"Nogavice bodočega zakonskega partnerja 1",{"v":20,"d":"20.00"},{"v":20,"d":"20.00"},{"$f":"'Oblačila-slavje-glasba-slike'!$C9-'Oblačila-slavje-glasba-slike'!$D9","v":{"v":0,"d":"0.00"}}]
[null,"Prstan za bodočega zakonskega partnerja 2",{"v":300,"d":"300.00"},{"v":250,"d":"250.00"},{"$f":"'Oblačila-slavje-glasba-slike'!$C10-'Oblačila-slavje-glasba-slike'!$D10","v":{"v":50,"d":"50.00"}}]
[null,"Obleka bodočega zakonskega partnerja 2",{"v":300,"d":"300.00"},{"v":350,"d":"350.00"},{"$f":"'Oblačila-slavje-glasba-slike'!$C11-'Oblačila-slavje-glasba-slike'!$D11","v":{"v":-50,"d":"-50.00 "}}]
[null,"Tančica/pokrivalo bodočega zakonskega partnerja 2",{"v":500,"d":"500.00"},{"v":500,"d":"500.00"},{"$f":"'Oblačila-slavje-glasba-slike'!$C12-'Oblačila-slavje-glasba-slike'!$D12","v":{"v":0,"d":"0.00"}}]
[null,"Čevlji bodočega zakonskega partnerja 2",{"v":200,"d":"200.00"},{"v":175,"d":"175.00"},{"$f":"'Oblačila-slavje-glasba-slike'!$C13-'Oblačila-slavje-glasba-slike'!$D13","v":{"v":25,"d":"25.00"}}]
[null,"Nakit bodočega zakonskega partnerja 2",{"v":400,"d":"400.00"},{"v":550,"d":"550.00"},{"$f":"'Oblačila-slavje-glasba-slike'!$C14-'Oblačila-slavje-glasba-slike'!$D14","v":{"v":-150,"d":"-150.00 "}}]
[null,"Nogavice bodočega zakonskega partnerja 2",{"v":20,"d":"20.00"},{"v":25,"d":"25.00"},{"$f":"'Oblačila-slavje-glasba-slike'!$C15-'Oblačila-slavje-glasba-slike'!$D15","v":{"v":-5,"d":"-5.00 "}}]
[null,"Skupni stroški za oblačila",{"$f":"SUBTOTAL(109,Oblačila[PREDVIDENI])","v":{"v":9490,"d":"9,490.00"}},{"$f":"SUBTOTAL(109,Oblačila[DEJANSKI])","v":{"v":9770,"d":"9,770.00"}},{"$f":"SUBTOTAL(109,Oblačila[PREKORAČENO/NEDOSEŽENO])","v":{"v":-280,"d":"-280.00 "}}]
[]
["Oznaka za poročno slavje je v celici na desni.","Poročno slavje*"]
["Vnesite stroške poročnega slavja brez stroškov za razvedrilo in dekoracijo v tabelo, ki se začne v celici na desni. Naslednje navodilo je v celici A31.","KATEGORIJA","PREDVIDENI","DEJANSKI","PREKORAČENO/NEDOSEŽENO"]
[null,"Stroški najema prostora/dvorane",{"v":200,"d":"200.00"},{"v":150,"d":"150.00"},{"$f":"'Oblačila-slavje-glasba-slike'!$C20-'Oblačila-slavje-glasba-slike'!$D20","v":{"v":50,"d":"50.00"}}]
[null,"Mize in stoli",{"v":100,"d":"100.00"},{"v":50,"d":"50.00"},{"$f":"'Oblačila-slavje-glasba-slike'!$C21-'Oblačila-slavje-glasba-slike'!$D21","v":{"v":50,"d":"50.00"}}]
[null,"Hrana",{"v":0,"d":"0.00"},{"v":0,"d":"0.00"},{"$f":"'Oblačila-slavje-glasba-slike'!$C22-'Oblačila-slavje-glasba-slike'!$D22","v":{"v":0,"d":"0.00"}}]
[null,"Pijača",{"v":0,"d":"0.00"},{"v":0,"d":"0.00"},{"$f":"'Oblačila-slavje-glasba-slike'!$C23-'Oblačila-slavje-glasba-slike'!$D23","v":{"v":0,"d":"0.00"}}]
[null,"Prti",{"v":0,"d":"0.00"},{"v":0,"d":"0.00"},{"$f":"'Oblačila-slavje-glasba-slike'!$C24-'Oblačila-slavje-glasba-slike'!$D24","v":{"v":0,"d":"0.00"}}]
[null,"Torta",{"v":700,"d":"700.00"},{"v":700,"d":"700.00"},{"$f":"'Oblačila-slavje-glasba-slike'!$C25-'Oblačila-slavje-glasba-slike'!$D25","v":{"v":0,"d":"0.00"}}]
[null,"Majhna darila",{"v":50,"d":"50.00"},{"v":28,"d":"28.00"},{"$f":"'Oblačila-slavje-glasba-slike'!$C26-'Oblačila-slavje-glasba-slike'!$D26","v":{"v":22,"d":"22.00"}}]
[null,"Osebje in napitnine",{"v":0,"d":"0.00"},{"v":0,"d":"0.00"},{"$f":"'Oblačila-slavje-glasba-slike'!$C27-'Oblačila-slavje-glasba-slike'!$D27","v":{"v":0,"d":"0.00"}}]
[null,"Skupni stroški za poročno slavje",{"$f":"SUBTOTAL(109,PoročnoSlavje[PREDVIDENI])","v":{"v":1050,"d":"1,050.00"}},{"$f":"SUBTOTAL(109,PoročnoSlavje[DEJANSKI])","v":{"v":928,"d":"928.00"}},{"$f":"SUBTOTAL(109,PoročnoSlavje[PREKORAČENO/NEDOSEŽENO])","v":{"v":122,"d":"122.00"}}]
[null,"* Ne vključuje stroškov za razvedrilo in dekoracijo"]
[]
["Oznaka z glasba ali razvedrilo je v celici na desni.","Glasba/razvedrilo"]
["Podrobnosti vnesite v tabelo »Glasba«, ki se začne v celici na desni. Naslednje navodilo je v celici A37.","KATEGORIJA","PREDVIDENI","DEJANSKI","PREKORAČENO/NEDOSEŽENO"]
[null,"Glasba za poroko",{"v":400,"d":"400.00"},{"v":400,"d":"400.00"},{"$f":"'Oblačila-slavje-glasba-slike'!$C33-'Oblačila-slavje-glasba-slike'!$D33","v":{"v":0,"d":"0.00"}}]
[null,"Skupina/DJ za poročno slavje",{"v":200,"d":"200.00"},{"v":0,"d":"0.00"},{"$f":"'Oblačila-slavje-glasba-slike'!$C34-'Oblačila-slavje-glasba-slike'!$D34","v":{"v":200,"d":"200.00"}}]
[null,"Skupni stroški za glasbo/razvedrilo",{"$f":"SUBTOTAL(109,Glasba[PREDVIDENI])","v":{"v":600,"d":"600.00"}},{"$f":"SUBTOTAL(109,Glasba[DEJANSKI])","v":{"v":400,"d":"400.00"}},{"$f":"SUBTOTAL(109,Glasba[PREKORAČENO/NEDOSEŽENO])","v":{"v":200,"d":"200.00"}}]
[]
["Oznaka za tiskano gradivo ali tiskovina je v celici na desni.","Tiskano gradivo/tiskovina"]
["Podrobnosti vnesite v tabelo »Tiskano gradivo«, ki se začne v celici na desni. Naslednji korak je v celici A50.","KATEGORIJA","PREDVIDENI","DEJANSKI","PREKORAČENO/NEDOSEŽENO"]
[null,"Povabila",{"v":500,"d":"500.00"},{"v":450,"d":"450.00"},{"$f":"'Oblačila-slavje-glasba-slike'!$C39-'Oblačila-slavje-glasba-slike'!$D39","v":{"v":50,"d":"50.00"}}]
[null,"Obvestila",{"v":200,"d":"200.00"},{"v":175,"d":"175.00"},{"$f":"'Oblačila-slavje-glasba-slike'!$C40-'Oblačila-slavje-glasba-slike'!$D40","v":{"v":25,"d":"25.00"}}]
[null,"Zahvalne kartice",{"v":100,"d":"100.00"},{"v":100,"d":"100.00"},{"$f":"'Oblačila-slavje-glasba-slike'!$C41-'Oblačila-slavje-glasba-slike'!$D41","v":{"v":0,"d":"0.00"}}]
[null,"Osebna tiskovina",{"v":0,"d":"0.00"},{"v":0,"d":"0.00"},{"$f":"'Oblačila-slavje-glasba-slike'!$C42-'Oblačila-slavje-glasba-slike'!$D42","v":{"v":0,"d":"0.00"}}]
[null,"Knjiga gostov",{"v":25,"d":"25.00"},{"v":25,"d":"25.00"},{"$f":"'Oblačila-slavje-glasba-slike'!$C43-'Oblačila-slavje-glasba-slike'!$D43","v":{"v":0,"d":"0.00"}}]
[null,"Programi",{"v":75,"d":"75.00"},{"v":80,"d":"80.00"},{"$f":"'Oblačila-slavje-glasba-slike'!$C44-'Oblačila-slavje-glasba-slike'!$D44","v":{"v":-5,"d":"-5.00 "}}]
[null,"Prtički za poročno slavje",{"v":35,"d":"35.00"},{"v":40,"d":"40.00"},{"$f":"'Oblačila-slavje-glasba-slike'!$C45-'Oblačila-slavje-glasba-slike'!$D45","v":{"v":-5,"d":"-5.00 "}}]
[null,"Vžigalice",{"v":0,"d":"0.00"},{"v":0,"d":"0.00"},{"$f":"'Oblačila-slavje-glasba-slike'!$C46-'Oblačila-slavje-glasba-slike'!$D46","v":{"v":0,"d":"0.00"}}]
[null,"Kaligrafija",{"v":0,"d":"0.00"},{"v":0,"d":"0.00"},{"$f":"'Oblačila-slavje-glasba-slike'!$C47-'Oblačila-slavje-glasba-slike'!$D47","v":{"v":0,"d":"0.00"}}]
[null,"Skupni stroški za tiskano gradivo/tiskovino",{"$f":"SUBTOTAL(109,TiskanoGradivo[PREDVIDENI])","v":{"v":935,"d":"935.00"}},{"$f":"SUBTOTAL(109,TiskanoGradivo[DEJANSKI])","v":{"v":870,"d":"870.00"}},{"$f":"SUBTOTAL(109,TiskanoGradivo[PREKORAČENO/NEDOSEŽENO])","v":{"v":65,"d":"65.00"}}]
[]
["Oznaka za fotografiranje je v celici na desni.","Fotografiranje"]
["Podrobnosti vnesite v tabelo »Fotografiranje«, ki se začne v celici na desni.","KATEGORIJA","PREDVIDENI","DEJANSKI","PREKORAČENO/NEDOSEŽENO"]
[null,"Uradne",{"v":1300,"d":"1,300.00"},{"v":1300,"d":"1,300.00"},{"$f":"'Oblačila-slavje-glasba-slike'!$C52-'Oblačila-slavje-glasba-slike'!$D52","v":{"v":0,"d":"0.00"}}]
[null,"Dodatni natisi",{"v":25,"d":"25.00"},{"v":25,"d":"25.00"},{"$f":"'Oblačila-slavje-glasba-slike'!$C53-'Oblačila-slavje-glasba-slike'!$D53","v":{"v":0,"d":"0.00"}}]
[null,"Fotoalbumi",{"v":100,"d":"100.00"},{"v":100,"d":"100.00"},{"$f":"'Oblačila-slavje-glasba-slike'!$C54-'Oblačila-slavje-glasba-slike'!$D54","v":{"v":0,"d":"0.00"}}]
[null,"Videoposnetki",{"v":200,"d":"200.00"},{"v":150,"d":"150.00"},{"$f":"'Oblačila-slavje-glasba-slike'!$C55-'Oblačila-slavje-glasba-slike'!$D55","v":{"v":50,"d":"50.00"}}]
[null,"Skupni stroški za fotografiranje",{"$f":"SUBTOTAL(109,fotografiranje[PREDVIDENI])","v":{"v":1625,"d":"1,625.00"}},{"$f":"SUBTOTAL(109,fotografiranje[DEJANSKI])","v":{"v":1575,"d":"1,575.00"}},{"$f":"SUBTOTAL(109,fotografiranje[PREKORAČENO/NEDOSEŽENO])","v":{"v":50,"d":"50.00"}}]

{"sheet":"Okrasje-cvetje-darila-potovanje","index":3,"n_rows":48,"n_cols":5,"rows_kept":48,"merged":[[8,1,8,4],[9,1,9,4],[18,1,18,4],[27,1,27,4],[34,1,34,4]]}
["Vnesite predvideni in dejanski stroške za vsako kategorija v ustrezne tabele na tem delovnem listu. Prekoračeno ali nedoseženo znesek je izračunan samodejno. Oznaka za dekoracija je v celici na desni. Uporabna navodila za uporabo tega delovnega lista najdete v celicah v tem stolpcu. Puščica dol za začetek dela.","Dekoracija*"]
["Vnesite stroške za dekoracijo brez stroškov za cvetje v tabelo, ki se začne v celici na desni. Naslednji korak je v celici A11.","KATEGORIJA","PREDVIDENI","DEJANSKI","PREKORAČENO/NEDOSEŽENO"]
[null,"Metuljčki za sedeže",{"v":0,"d":"0.00"},{"v":0,"d":"0.00"},{"$f":"'Okrasje-cvetje-darila-potovanje'!$C3-'Okrasje-cvetje-darila-potovanje'!$D3","v":{"v":0,"d":"0.00"}}]
[null,"Namizni šopki",{"v":300,"d":"300.00"},{"v":320,"d":"320.00"},{"$f":"'Okrasje-cvetje-darila-potovanje'!$C4-'Okrasje-cvetje-darila-potovanje'!$D4","v":{"v":-20,"d":"-20.00 "}}]
[null,"Sveče",{"v":100,"d":"100.00"},{"v":75,"d":"75.00"},{"$f":"'Okrasje-cvetje-darila-potovanje'!$C5-'Okrasje-cvetje-darila-potovanje'!$D5","v":{"v":25,"d":"25.00"}}]
[null,"Osvetlitev",{"v":100,"d":"100.00"},{"v":75,"d":"75.00"},{"$f":"'Okrasje-cvetje-darila-potovanje'!$C6-'Okrasje-cvetje-darila-potovanje'!$D6","v":{"v":25,"d":"25.00"}}]
[null,"Baloni",{"v":200,"d":"200.00"},{"v":250,"d":"250.00"},{"$f":"'Okrasje-cvetje-darila-potovanje'!$C7-'Okrasje-cvetje-darila-potovanje'!$D7","v":{"v":-50,"d":"-50.00 "}}]
[null,"Skupni stroški za dekoracijo",{"$f":"SUBTOTAL(109,Dekoracija[PREDVIDENI])","v":{"v":700,"d":"700.00"}},{"$f":"SUBTOTAL(109,Dekoracija[DEJANSKI])","v":{"v":720,"d":"720.00"}},{"$f":"SUBTOTAL(109,Dekoracija[PREKORAČENO/NEDOSEŽENO])","v":{"v":-20,"d":"-20.00 "}}]
[null,"* Ne vključuje stroškov za cvetje"]
[]
["Oznaka za cvetje je v celici na desni.","Cvetje"]
["Podrobnosti vnesite v tabelo »Cvetje«, ki se začne v celici na desni. Naslednje navodilo je v celici A20.","KATEGORIJA","PREDVIDENI","DEJANSKI","PREKORAČENO/NEDOSEŽENO"]
[null,"Šopki",{"v":500,"d":"500.00"},{"v":450,"d":"450.00"},{"$f":"'Okrasje-cvetje-darila-potovanje'!$C13-'Okrasje-cvetje-darila-potovanje'!$D13","v":{"v":50,"d":"50.00"}}]
[null,"Naprsni šopki",{"v":0,"d":"0.00"},{"v":0,"d":"0.00"},{"$f":"'Okrasje-cvetje-darila-potovanje'!$C14-'Okrasje-cvetje-darila-potovanje'!$D14","v":{"v":0,"d":"0.00"}}]
[null,"Zapestni šopki",{"v":0,"d":"0.00"},{"v":0,"d":"0.00"},{"$f":"'Okrasje-cvetje-darila-potovanje'!$C15-'Okrasje-cvetje-darila-potovanje'!$D15","v":{"v":0,"d":"0.00"}}]
[null,"Poroka",{"v":400,"d":"400.00"},{"v":400,"d":"400.00"},{"$f":"'Okrasje-cvetje-darila-potovanje'!$C16-'Okrasje-cvetje-darila-potovanje'!$D16","v":{"v":0,"d":"0.00"}}]
[null,"Poročno slavje",{"v":0,"d":"0.00"},{"v":0,"d":"0.00"},{"$f":"'Okrasje-cvetje-darila-potovanje'!$C17-'Okrasje-cvetje-darila-potovanje'!$D17","v":{"v":0,"d":"0.00"}}]
[null,"Skupni stroški za cvetje",{"$f":"SUBTOTAL(109,Cvetje[PREDVIDENI])","v":{"v":900,"d":"900.00"}},{"$f":"SUBTOTAL(109,Cvetje[DEJANSKI])","v":{"v":850,"d":"850.00"}},{"$f":"SUBTOTAL(109,Cvetje[PREKORAČENO/NEDOSEŽENO])","v":{"v":50,"d":"50.00"}}]
[]
["Oznaka za darila je v celici na desni.","Darila"]
["Podrobnosti vnesite v tabelo »Darila«, ki se začne v celici na desni. Naslednje navodilo je v celici A29.","KATEGORIJA","PREDVIDENI","DEJANSKI","PREKORAČENO/NEDOSEŽENO"]
[null,"Udeleženci",{"v":1000,"d":"1,000.00"},{"v":400,"d":"400.00"},{"$f":"'Okrasje-cvetje-darila-potovanje'!$C22-'Okrasje-cvetje-darila-potovanje'!$D22","v":{"v":600,"d":"600.00"}}]
[null,"Bodoči zakonski partner 1",{"v":150,"d":"150.00"},{"v":200,"d":"200.00"},{"$f":"'Okrasje-cvetje-darila-potovanje'!$C23-'Okrasje-cvetje-darila-potovanje'!$D23","v":{"v":-50,"d":"-50.00 "}}]
[null,"Bodoči zakonski partner 2",{"v":150,"d":"150.00"},{"v":200,"d":"200.00"},{"$f":"'Okrasje-cvetje-darila-potovanje'!$C24-'Okrasje-cvetje-darila-potovanje'!$D24","v":{"v":-50,"d":"-50.00 "}}]
[null,"Starši",{"v":25,"d":"25.00"},{"v":25,"d":"25.00"},{"$f":"'Okrasje-cvetje-darila-potovanje'!$C25-'Okrasje-cvetje-darila-potovanje'!$D25","v":{"v":0,"d":"0.00"}}]
[null,"Govorniki/drugi udeleženci",{"v":20,"d":"20.00"},{"v":250,"d":"250.00"},{"$f":"'Okrasje-cvetje-darila-potovanje'!$C26-'Okrasje-cvetje-darila-potovanje'!$D26","v":{"v":-230,"d":"-230.00 "}}]
[null,"Skupni stroški za darila",{"$f":"SUBTOTAL(109,Darila[PREDVIDENI])","v":{"v":1345,"d":"1,345.00"}},{"$f":"SUBTOTAL(109,Darila[DEJANSKI])","v":{"v":1075,"d":"1,075.00"}},{"$f":"SUBTOTAL(109,Darila[PREKORAČENO/NEDOSEŽENO])","v":{"v":270,"d":"270.00"}}]
[]
["Oznaka za potovanje ali prevoz je v celici na desni.","Potovanje/prevoz"]
["Podrobnosti vnesite v tabelo »Potovanje«, ki se začne v celici na desni. Naslednje navodilo je v celici A36.","KATEGORIJA","PREDVIDENI","DEJANSKI","PREKORAČENO/NEDOSEŽENO"]
[null,"Limuzine/avtomobili",{"v":100,"d":"100.00"},{"v":125,"d":"125.00"},{"$f":"'Okrasje-cvetje-darila-potovanje'!$C31-'Okrasje-cvetje-darila-potovanje'!$D31","v":{"v":-25,"d":"-25.00 "}}]
[null,"Parkiranje",{"v":0,"d":"0.00"},{"v":40,"d":"40.00"},{"$f":"'Okrasje-cvetje-darila-potovanje'!$C32-'Okrasje-cvetje-darila-potovanje'!$D32","v":{"v":-40,"d":"-40.00 "}}]
[null,"Taksiji",{"v":0,"d":"0.00"},{"v":0,"d":"0.00"},{"$f":"'Okrasje-cvetje-darila-potovanje'!$C33-'Okrasje-cvetje-darila-potovanje'!$D33","v":{"v":0,"d":"0.00"}}]
[null,"Skupni stroški za potovanje/prevoz",{"$f":"SUBTOTAL(109,Potovanje[PREDVIDENI])","v":{"v":100,"d":"100.00"}},{"$f":"SUBTOTAL(109,Potovanje[DEJANSKI])","v":{"v":165,"d":"165.00"}},{"$f":"SUBTOTAL(109,Potovanje[PREKORAČENO/NEDOSEŽENO])","v":{"v":-65,"d":"-65.00 "}}]
[]
["Oznaka za drugi stroški je v celici na desni strani.","Drugi stroški"]
["Podrobnosti vnesite v tabelo »Drugi stroški«, ki se začne v celici na desni.","KATEGORIJA","PREDVIDENI","DEJANSKI","PREKORAČENO/NEDOSEŽENO"]
[null,"Uradnik",{"v":0,"d":"0.00"},{"v":0,"d":"0.00"},{"$f":"'Okrasje-cvetje-darila-potovanje'!$C38-'Okrasje-cvetje-darila-potovanje'!$D38","v":{"v":0,"d":"0.00"}}]
[null,"Plačilo najema cerkve/prostora za poroko",{"v":40,"d":"40.00"},{"v":55,"d":"55.00"},{"$f":"'Okrasje-cvetje-darila-potovanje'!$C39-'Okrasje-cvetje-darila-potovanje'!$D39","v":{"v":-15,"d":"-15.00 "}}]
[null,"Koordinator poroke",{"v":0,"d":"0.00"},{"v":0,"d":"0.00"},{"$f":"'Okrasje-cvetje-darila-potovanje'!$C40-'Okrasje-cvetje-darila-potovanje'!$D40","v":{"v":0,"d":"0.00"}}]
[null,"Predporočna generalka",{"v":450,"d":"450.00"},{"v":450,"d":"450.00"},{"$f":"'Okrasje-cvetje-darila-potovanje'!$C41-'Okrasje-cvetje-darila-potovanje'!$D41","v":{"v":0,"d":"0.00"}}]
[null,"Zaročna zabava",{"v":20,"d":"20.00"},{"v":50,"d":"50.00"},{"$f":"'Okrasje-cvetje-darila-potovanje'!$C42-'Okrasje-cvetje-darila-potovanje'!$D42","v":{"v":-30,"d":"-30.00 "}}]
[null,"Dekliščina",{"v":30,"d":"30.00"},{"v":20,"d":"20.00"},{"$f":"'Okrasje-cvetje-darila-potovanje'!$C43-'Okrasje-cvetje-darila-potovanje'!$D43","v":{"v":10,"d":"10.00"}}]
[null,"Obiski salonov za nego",{"v":45,"d":"45.00"},{"v":46,"d":"46.00"},{"$f":"'Okrasje-cvetje-darila-potovanje'!$C44-'Okrasje-cvetje-darila-potovanje'!$D44","v":{"v":-1,"d":"-1.00 "}}]
[null,"Fantovščina",{"v":0,"d":"0.00"},{"v":0,"d":"0.00"},{"$f":"'Okrasje-cvetje-darila-potovanje'!$C45-'Okrasje-cvetje-darila-potovanje'!$D45","v":{"v":0,"d":"0.00"}}]
[null,"Kosilo",{"v":300,"d":"300.00"},{"v":400,"d":"400.00"},{"$f":"'Okrasje-cvetje-darila-potovanje'!$C46-'Okrasje-cvetje-darila-potovanje'!$D46","v":{"v":-100,"d":"-100.00 "}}]
[null,"Hotelske sobe",{"v":0,"d":"0.00"},{"v":0,"d":"0.00"},{"$f":"'Okrasje-cvetje-darila-potovanje'!$C47-'Okrasje-cvetje-darila-potovanje'!$D47","v":{"v":0,"d":"0.00"}}]
[null,"Skupni znesek drugih stroškov",{"$f":"SUBTOTAL(109,DrugiStroški[PREDVIDENI])","v":{"v":885,"d":"885.00"}},{"$f":"SUBTOTAL(109,DrugiStroški[DEJANSKI])","v":{"v":1021,"d":"1,021.00"}},{"$f":"SUBTOTAL(109,DrugiStroški[PREKORAČENO/NEDOSEŽENO])","v":{"v":-136,"d":"-136.00 "}}]